Cogmind - Beta 14 @@@ ROGUE MODE // 2024.09.06 @ 11:05:08 Player: FreshFromage Result: Destroyed by D-53 Grenadier with Mini Grenade Launcher Performance ------------- Evolutions (0) 0 Regions Visited (2) 400 Robots Destroyed (23) 115 Value Destroyed (500) 500 Prototype IDs (2) 40 Alien Tech Used (0) 0 Bonus (0) 0 TOTAL SCORE: 1055 Bonus ------- None Cogmind --------- Core Integrity 0/250 Matter 300/300 Energy 85/100 System Corruption 0% Temperature Cool (0) Movement Walking (180) Ox1 Location -10/Mines Parts ------- > --- POWER (1) -------- (None) > --- PROPULSION (2) --- VSS Leg > --- UTILITY (2) ------ Medium Storage Unit Machine Analyzer > --- WEAPON (2) ------- Light Cannon > --- INVENTORY (10) --- Medium Matter Pod (100) Structural Scanner Sensor Array Propulsion Shielding Light Armor Plating Light Armor Plating Tractor Beam Recalibrator Rocket Launcher Axe Peak State ------------ > --- POWER ------------ Light Nuclear Core > --- PROPULSION ------- Aluminum Leg VSS Leg > --- UTILITY ---------- Medium Storage Unit Machine Analyzer > --- WEAPON ----------- Assault Rifle Light Cannon > --- INVENTORY -------- Light Treads Medium Matter Pod Structural Scanner Sensor Array Propulsion Shielding Light Armor Plating Light Armor Plating Tractor Beam Recalibrator Rocket Launcher [Rating: 14] Favorites ----------- Power Ion Engine Engine Ion Engine Power Core Light Nuclear Core Propulsion Aluminum Leg Leg Aluminum Leg Utility Machine Analyzer Storage Medium Storage Unit Processor Machine Analyzer Weapon Assault Rifle Ballistic Gun Assault Rifle Ballistic Cannon Light Cannon Build | -11 -10 -10 ------- Run | Yrd Mat Min Slots Evolved . | . . . Power . | . . . Propulsion . | . . . Utility . | . . . Weapon . | . . . Parts Attached 16 | 7 7 2 Power 3 | 2 . 1 Engine 2 | 2 . . Core 1 | . . 1 Reactor . | . . . Propulsion 5 | 2 2 1 Treads . | . . . Leg 5 | 2 2 1 Wheel . | . . . Hover . | . . . Flight . | . . . Utility 3 | 1 2 . Device . | . . . Storage 2 | 1 1 . Processor 1 | . 1 . Hackware . | . . . Protection . | . . . Artifact . | . . . Weapon 5 | 2 3 . Energy Gun . | . . . Energy Cannon . | . . . Ballistic Gun 4 | 2 2 . Ballistic Cannon 1 | . 1 . Launcher . | . . . Special Weapon . | . . . Impact Weapon . | . . . Slashing Weapon . | . . . Piercing Weapon . | . . . Special Melee Weapon . | . . . Unidentified Prototypes . | . . . Parts Lost 3 | . . 3 Power 1 | . . 1 Propulsion 1 | . . 1 Utility . | . . . Weapon 1 | . . 1 Highest Loss Streak 3 | . . 3 To Critical Strikes . | . . . Average Slot Usage (%) 99 | . 99 98 Engine 10 | . 14 1 Core 2 | . . 12 Leg 28 | . 28 28 Storage 14 | . 14 14 Processor 13 | . 13 14 Ballistic Gun 21 | . 24 14 Ballistic Cannon 5 | . 3 14 Peak Build Rating 14 | 6 10 14 Average Rating 10 | 4 9 13 On Entrance 5 | . 6 10 Naked Turns . | . . . Heaviest Build 20 | 13 20 20 Greatest Support 22 | 20 20 22 Greatest Overweight (x) 1 | . . 1 Average Overweight (x) . | . . . Largest Inventory Capacity 10 | 8 10 10 Average Capacity 9 | 6 9 10 Most Carried 10 | 3 10 10 Average Carried 9 | 2 9 9 Final Capacity 10 | 8 10 10 Final Carried 10 | 3 10 10 Class Distribution -------------------- 85% | Mutant 14% | Scavenger-Mutant Dominant Class ---------------- Mutant | -10/Materials Mutant | -10/Mines Resources | -11 -10 -10 ----------- Run | Yrd Mat Min Matter Collected 799 | 216 528 55 Remotely . | . . . Salvage Created 713 | . 605 108 Parts 47 | . 40 7 Haulers Intercepted 1 | . 1 . Recyclers Shooed 3 | . 3 . Parts Field Recycled . | . . . Retrieved Matter . | . . . Parts Self-Destructed . | . . . Prevented . | . . . Kills | -11 -10 -10 ------- Run | Yrd Mat Min Combat Hostiles Destroyed 16 | . 14 2 Guns 15 | . 14 1 Cannons 1 | . . 1 Classes Destroyed 9 | . 7 2 Worker 1 | . . 1 Tunneler 1 | . . 1 Hauler 1 | . 1 . Recycler 1 | . 1 . Mechanic 1 | . 1 . Operator 1 | . 1 . Watcher 1 | . 1 . Swarmer 6 | . 6 . Grunt 10 | . 8 2 Best Kill Streak 3 | . 3 3 Combat Bots Only 3 | . 3 1 Max Kills in Single Turn 2 | . 2 1 Gunslinging 1 | . 1 . Exploded . | . . . Melee . | . . . Uniques/NPCs Destroyed . | . . . Combat | -11 -10 -10 -------- Run | Yrd Mat Min Hostile Shots Fired 77 | . 51 26 Missed 27 | . 15 12 Damage Taken 916 | . 400 516 Core 256 | . 64 192 Absorbed by Shields . | . . . Core Remaining (%) 100 | 100 . . Volleys Fired 72 | . 67 5 Largest 2 | . 2 2 Hottest 55 | . 55 55 Shots Fired 144 | . 134 10 Gun 127 | . 122 5 Cannon 17 | . 12 5 Launcher . | . . . Special . | . . . Kinetic 144 | . 134 10 Thermal . | . . . Explosive . | . . . Electromagnetic . | . . . Robot Hit Streak 9 | . 9 8 Robot Miss Streak 5 | . 5 1 Penetration Max . | . . . Secondary Targets 1 | . 1 . Max Gunslinging Chain 1 | . 1 . Shots Hit Robots 84 | . 76 8 Core Hits 38 | . 32 6 Critical Kills . | . . . Critical Parts Destroyed . | . . . Critical Strikes 1 | . 1 . Blast 1 | . 1 . Melee Attacks . | . . . Impact . | . . . Slashing . | . . . Piercing . | . . . Sneak Attacks . | . . . Combat Hostiles . | . . . Follow-up Attacks . | . . . Damage Inflicted 1103 | . 907 196 Guns 844 | . 781 63 Cannons 201 | . 126 75 Explosions . | . . . Melee . | . . . Ramming 58 | . . 58 Kinetic 1045 | . 907 138 Thermal . | . . . Explosive . | . . . Electromagnetic . | . . . Impact . | . . . Slashing . | . . . Piercing . | . . . Highest Corruption . | . . . Average Corruption . | . . . Corruption Purged . | . . . Corruption Blocked . | . . . Overload Shots . | . . . Overflow Damage . | . . . Projectiles . | . . . Explosions . | . . . Melee . | . . . Knockbacks . | . . . Impact . | . . . Kinetic . | . . . Secondary . | . . . Self-Inflicted Damage . | . . . Shots . | . . . Rammed . | . . . Targets Rammed 8 | . . 8 Kicked 8 | . . 8 Crushed . | . . . Highest Temperature 27 | . 19 27 Average Temperature 12 | . 9 19 Received Heat Transfer 216 | . 165 51 Siege Activations . | . . . Robots Corrupted . | . . . Combat Hostiles . | . . . Parts Fried . | . . . Impact Corruptions . | . . . Robots Melted . | . . . Combat Hostiles . | . . . Parts Melted . | . . . Heat Transferred . | . . . Parts Sabotaged . | . . . Parts Stolen . | . . . Parts Stripped . | . . . Power Chain Reactions . | . . . Alert | -11 -10 -10 ------- Run | Yrd Mat Min Peak Influence 348 | . 348 136 Initial 76 | . . 76 Average 166 | . 197 102 Maximum Alert Level 1 | . 1 . Low Security (%) 66 | 100 54 100 Level 1 33 | . 45 . Level 2 . | . . . Level 3 . | . . . Level 4 . | . . . Level 5 . | . . . High Security . | . . . Max Security . | . . . Squads Dispatched 4 | . 3 1 Investigation 2 | . 1 1 Extermination . | . . . Reinforcement 2 | . 2 . Assault . | . . . Garrison . | . . . Intercept . | . . . Searches Triggered . | . . . Construction Impeded . | . . . Haulers Reinforced . | . . . Active Scanning Responses . | . . . Cargo Convoy Interrupts . | . . . Stealth | -11 -10 -10 --------- Run | Yrd Mat Min Distress Signals 3 | . 2 1 Communications Jammed . | . . . Distress Signals . | . . . Times Spotted 30 | . 24 6 Peak Tracking Total 4 | . 4 4 Tactical Retreats 2 | . 2 . Traps | -11 -10 -10 ------- Run | Yrd Mat Min Traps Triggered 1 | . 1 . Indirectly . | . . . Trap Hack Attempts . | . . . Triggered . | . . . Disarmed . | . . . Reprogrammed . | . . . Reused . | . . . Traps Extracted . | . . . Installed . | . . . Triggered . | . . . Machines | -11 -10 -10 ---------- Run | Yrd Mat Min Machines Disabled . | . . . Max in Single Turn . | . . . Machines Repaired . | . . . Machines Dismantled . | . . . Machines Sabotaged . | . . . Overloaded Fab Kills . | . . . Hacking | -11 -10 -10 --------- Run | Yrd Mat Min Machines Accessed 8 | . 7 1 Terminals 6 | . 6 . Fabricators . | . . . Repair Stations . | . . . Recycling Units 1 | . 1 . Scanalyzers . | . . . Garrison Access . | . . . Total Hacks 21 | . 20 1 Successful 10 | . 9 1 Failed 11 | . 11 . Catastrophic 1 | . 1 . Database Lockouts . | . . . Manual 17 | . 17 . Terminals 17 | . 17 . Fabricators . | . . . Repair Stations . | . . . Recycling Units 3 | . 3 . Scanalyzers . | . . . Garrison Access . | . . . Terminal Hacks 5 | . 4 1 Robot Analysis 2 | . 2 . Prototype ID Bank 1 | . 1 . Open Door 1 | . . 1 Locate Traps 1 | . 1 . Fabricator Hacks . | . . . Repair Station Hacks . | . . . Recycling Unit Hacks 1 | . 1 . Retrieve Components 1 | . 1 . Scanalyzer . | . . . Garrison Access Hacks . | . . . Unauthorized Hacks 4 | . 4 . Terminals 3 | . 3 . Botnet 3 | . 3 . Fabricators . | . . . Repair Stations . | . . . Recycling Units 1 | . 1 . Reject 1 | . 1 . Scanalyzers . | . . . Garrison Access . | . . . Data Cores Recovered . | . . . Used . | . . . Hacking Detections 7 | . 7 . Full Trace Events . | . . . Feedback Events . | . . . Feedback Blocked . | . . . Robot Schematics Acquired . | . . . Robots Built . | . . . Authchips . | . . . Time . | . . . Total Robot Build Rating . | . . . Part Schematics Acquired . | . . . Parts Built . | . . . Authchips . | . . . Time . | . . . Total Part Build Rating . | . . . Parts Repaired . | . . . Time . | . . . Parts Recycled . | . . . Recycled Matter . | . . . Retrieved Matter . | . . . Retrieved Components 9 | . 9 . Parts Scanalyzed . | . . . Part Schematics Acquired . | . . . Parts Damaged . | . . . Bothacking | -11 -10 -10 ------------ Run | Yrd Mat Min Used RIF Installer . | . . . Robots Hacked . | . . . Non-combat . | . . . Combat . | . . . Robot Hacks Applied . | . . . Relay Couplers Released . | . . . Fabnet Peak Effective % . | . . . Robots Rewired . | . . . Allies Hacked . | . . . Hacks Repelled . | . . . Allies | -11 -10 -10 -------- Run | Yrd Mat Min Total Allies . | . . . Largest Group . | . . . Highest-Rated Group . | . . . Highest-Rated Ally . | . . . Total Orders . | . . . Ally Attacks . | . . . Total Damage . | . . . Kills . | . . . Allies Corrupted . | . . . Allies Melted . | . . . Intel | -11 -10 -10 ------- Run | Yrd Mat Min Robot Analysis Total 2 | . 2 . Derelict Logs Recovered 2 | . . 2 Drone Launches . | . . . Drone Recoveries . | . . . Exploration | -11 -10 -10 ------------- Run | Yrd Mat Min Turns Passed 1234 | 62 895 277 Spaces Moved 751 | 45 478 228 Core 10 | 10 . . Treads . | . . . Legs 741 | 35 478 228 Wheels . | . . . Hover . | . . . Flight . | . . . Fastest Speed 50 | 50 120 105 Average Speed 114 | 104 120 105 Slowest Speed 180 | 120 120 180 Overloaded Moves . | . . . Propulsion Burnouts . | . . . Robots Hopped . | . . . Cave-ins Triggered . | . . . Exploration Rate (%) 43 | 4 79 46 Regions Visited 2 Branch Regions 1 Pre-discovered Areas . | . . . Known Exits Taken . | . . . Unknown Exits Taken 2 | 1 1 . Scrap Searched 1 | . . 1 Spaces Dug . | . . . Terrain Destroyed . | . . . Melee . | . . . Projectile . | . . . AOE . | . . . Terrain Rammed . | . . . Walls Destroyed . | . . . Machines Disabled . | . . . Actions | -11 -10 -10 --------- Run | Yrd Mat Min Total 990 | 56 679 255 Wait 115 | 3 104 8 Move 749 | 44 477 228 Hop . | . . . Pick Up 16 | 2 13 1 Fast Attach 9 | 6 3 . Attach . | . . . Detach . | . . . Swap 7 | 1 4 2 Drop 14 | . 11 3 Fire 72 | . 67 5 Melee . | . . . Ram . | . . . Kick 8 | . . 8 Crush . | . . . Escape Stasis . | . . . Rewire . | . . . Trap . | . . . Miscellaneous . | . . . Route ------- -11/Scrapyard -10/Materials (discovered 4 exits: [*Mat x2] / *Min x2) -10/Mines (discovered 2 exits: [*Mat x2]) History --------- Turn | Location | Event 2 | -11/Scrapyard | Met Revision 17 9 | -11/Scrapyard | Discovered new exit (range 14) 63 | -11/Scrapyard | Entered Materials 257 | -10/Materials | Discovered new exit (range 9) 317 | -10/Materials | Build established: Mutant 491 | -10/Materials | Discovered new exit (range 10) 670 | -10/Materials | Discovered new exit (range 6) 894 | -10/Materials | Discovered new exit (range 15) 958 | -10/Materials | Entered Mines 961 | -10/Mines | Met a Derelict shopkeep closing up shop 993 | -10/Mines | Met a Derelict bent on vengeance 1015 | -10/Mines | Learned location of 2 exits from Materials 1035 | -10/Mines | Learned location of 1 exit from Materials 1131 | -10/Mines | Discovered new exit (range 3) 1173 | -10/Mines | Discovered new exit (range 8) 1200 | -10/Mines | Assembled infested the area 1205 | -10/Mines | Assisted by a Guerilla fighting off Assembled 1227 | -10/Mines | Core integrity fell below 50% 1234 | -10/Mines | Core integrity fell below 20% 1235 | -10/Mines | Destroyed by D-53 Grenadier with Mini Grenade Launcher Last Messages --------------- 01200_ ALERT: Infestation in the mines, dispatching Demolisher response squad. 01205_ A derelict emerges from the shadows: "You need to get out of here! I've been tracking a group of Assembled to figure out where they're coming from, and they're closing on this area, come on!" 01208_ C-30 ARC bursts open, deploying its payload. 01208_ D-53 Grenadier unfolds itself. 01208_ T0-YGY(h): "I'll hold them off! Go on ahead or try to find another way!" 01208_ HV Slug penetrates Core Extractor. 01208_ Core Extractor disabled. 01211_ T0-YGY(h) destroyed. 01211_ Lgt. Nuclear Core destroyed. 01233_ The unstable cave ceiling collapses. 01233_ Assault Rifle destroyed. 01234_ Aluminum Leg destroyed. 01235_ The unstable cave ceiling collapses. Map ----- +----------------------------------------------------+ | ?????????????????????????????????????????????????? | | ?????????????????????????????????????????????????? | | ???????????????????????##????????????????????????? | | ?????????????????????## #########??????????????? | | ?????????????????????# #??????????????? | | ????????????????????# ### #### #??????????????? | | ???????????????????????????# #??# #??????????????? | | ???????????????????????????#%#??# #?????########## | | ???????????????????????##### #??# ####### | | ???????????????????????# #??# =%= ######## | | ???????????????????????# #####??######### #?###??# | | ???????????????????????# #??????????????# ### ##?# | | ???????????????????????# #?????????????## #?# | | ???????????????????????# #?????????????# #?? | | ???????????????????????# #?????????????# ##?? | | ???????????????????????#%#?########???## # ^#??? | | ???????????????????????#=### #???# ^# # #??? | | ???????????????????????# %*% #??# # ^ ^#??? | | ???????????????????????#!### #??# # ## #??? | | ???????????????????????#%#?# < #??## ^ #??? | | ???????????????????????#%#?# #???#########??? | | ???????????????????????#=#?# #??????????????? | | ?????????????????????### #?########??????????????? | | ????????????????????## #######?????????????????? | | ???????????????????## ####??????????????? | | ??????????????????## @ ##?????????????? | | ?????????????????## #####?????????? | | ????????????????## # #?????????? | | ????????????????# ## #?????????? | | ????????????????# g g ###### #?????????? | | ????????????????## #????# ###???????? | | ?????????????????### #????# #???????? | | ??????????????????# #####????# #???????? | | ????????###??????## #????????## #???????? | | ???????## #???### dd #?????????# #???????? | | ???????# #?## #??####???# #???????? | | ???????# ##$ #?## ##??# #???????? | | ??????## ###?# ##?# #???????? | | ?????## # ####??## ### #???????? | | ?????# ### ###???### #???????? | | ?????# ##?##?????## ### #???????? | | ?????## ##?????????# < ### #???????? | | ??????## ##???####???# #???????? | | ???????## ###?# # ##?## ## ### ????? | | ????????## #? ### #######?# ???? | | ? #### ## ## ##???????###### ???? | | % %" #???????????????????? | | ### " " #??????????????????? | | # ????# """ #?????????????????? | | ?#???????## # # """ #?????????????????? | +----------------------------------------------------+ Best States ------------- Heat Dissipation 25 Energy Generation 14 Energy Capacity 250 Matter Stores 300 Matter Capacity 300 Sight Range 16 Terrain Scan Density 10 Evasion (%) 55 Item Schematics ----------------- None Robot Schematics ------------------ None Fabricated ------------ Nothing Alien Tech Used ----------------- None Achievements -------------- None Challenges ------------ None Game ------ Seed ArmorCloakMask Manual? 0 Play Time 00:20:58 Cumulative 68.4 hours Start 2024.09.06 @ 10:43:38 End 2024.09.06 @ 11:05:08 Sessions 1 Manual Loads 0 Difficulty Rogue Special Mode None Game No. 31 Rogue 31 Adventurer 0 Explorer 0 Win Type - Total 2 Types 2/0/0/0/0/0/0/0/0 Lore% 29 Gallery% 37 Achievement% 36 Wizard Run 0 Options --------- Layout 1 ASCII 0 Keyboard 0 Movement Vi Keybinds 0 Fullscreen 1 Font 24/Smallcaps Map View 50x35 Zoom Use 0% Tactical HUD 1 Map Filters NONE Filters NONE Steam 1 RUN: 25dfc8be-d390-4afb-8fd3-ff82314edc2c